fUSD/lending_fUSD_20260612
["ID","MTS","AMOUNT","RATE_DAILY","PERIOD"]
[424862226,1781212243000,-500.0,0.00029999,2]
[424862218,1781212243000,-600.88936551,0.000299,2]
[424862220,1781212243000,-600.88936551,0.000299,2]
[424862230,1781212243000,-701.39614308,0.00029999,2]
[424862227,1781212243000,-183.08077087,0.00029999,2]
[424862229,1781212243000,-701.39614308,0.00029999,2]
[424862228,1781212243000,-701.39614308,0.00029999,2]
[424862233,1781212243000,-701.39614308,0.00029999,2]
[424862238,1781212243000,-701.39614308,0.00029999,2]
[424862232,1781212243000,-701.39614308,0.00029999,2]
[424862231,1781212243000,-701.39614308,0.00029999,2]
[424862234,1781212243000,-701.39614308,0.00029999,2]
[424862237,1781212243000,-701.39614308,0.00029999,2]
[424862235,1781212243000,-701.39614308,0.00029999,2]
[424862209,1781212243000,-205.40773364,0.00029524,7]
[424862224,1781212243000,-152.0,0.00029923,3]
[424862211,1781212243000,-500.0,0.00029846,19]
[424862236,1781212243000,-701.39614308,0.00029999,2]
[424862212,1781212243000,-152.0,0.00029847,7]
[424862184,1781212243000,-151.4770914,0.00029507,7]
[424862186,1781212243000,-488.69027535,0.00029507,7]
[424862185,1781212243000,-244.64774395,0.00029507,7]
[424862190,1781212243000,-352.24435023,0.00029524,7]
[424862187,1781212243000,-555.98413013,0.00029507,7]
[424862191,1781212243000,-339.47003286,0.00029524,7]
[424862189,1781212243000,-307.68833246,0.00029507,7]
[424862188,1781212243000,-181.66088399,0.00029507,7]
[424862193,1781212243000,-326.92401008,0.00029524,7]
[424862192,1781212243000,-242.81820882,0.00029524,7]
[424862194,1781212243000,-453.66465325,0.00029524,7]
[424862195,1781212243000,-535.78235134,0.00029524,7]
[424862205,1781212243000,-208.97055616,0.00029524,7]
[424862203,1781212243000,-247.42429171,0.00029524,7]
[424862196,1781212243000,-207.178928,0.00029524,5]
[424862199,1781212243000,-379.8484857,0.00029524,7]
[424862204,1781212243000,-198.36476642,0.00029524,7]
[424862200,1781212243000,-498.19880149,0.00029524,7]
[424862197,1781212243000,-459.86307171,0.00029524,2]
[424862202,1781212243000,-468.16593869,0.00029524,7]
[424862198,1781212243000,-523.20141639,0.00029524,7]
[424862201,1781212243000,-450.2244585,0.00029524,7]
[424862206,1781212243000,-240.86109358,0.00029524,7]
[424862210,1781212243000,-499.31896103,0.00029524,7]
[424862208,1781212243000,-213.66750967,0.00029524,7]
[424862213,1781212243000,-518.5,0.00029871,2]
[424862239,1781212243000,-701.39614308,0.00029999,2]
[424862221,1781212243000,-600.88936551,0.000299,2]
[424862241,1781212243000,-701.39614308,0.00029999,2]
[424862272,1781212243000,-701.39614308,0.00029999,2]
[424862271,1781212243000,-701.39614308,0.00029999,2]
[424862270,1781212243000,-701.39614308,0.00029999,2]
[424862269,1781212243000,-701.39614308,0.00029999,2]
[424862268,1781212243000,-701.39614308,0.00029999,2]
[424862277,1781212243000,-701.39614308,0.00029999,2]
[424862275,1781212243000,-701.39614308,0.00029999,2]
[424862276,1781212243000,-701.39614308,0.00029999,2]
[424862279,1781212243000,-734.78931632,0.00029999,2]
[424862278,1781212243000,-734.78931632,0.00029999,2]
[424862281,1781212243000,-734.78931632,0.00029999,2]
[424862285,1781212243000,-734.78931632,0.00029999,2]
[424862282,1781212243000,-734.78931632,0.00029999,2]
[424862284,1781212243000,-734.78931632,0.00029999,2]
[424862283,1781212243000,-734.78931632,0.00029999,2]
[424862280,1781212243000,-734.78931632,0.00029999,2]
[424862287,1781212243000,-734.78931632,0.00029999,2]
[424862289,1781212243000,-734.78931632,0.00029999,2]
[424862292,1781212243000,-734.78931632,0.00029999,2]
[424862291,1781212243000,-734.78931632,0.00029999,2]
[424862286,1781212243000,-734.78931632,0.00029999,2]
[424862290,1781212243000,-734.78931632,0.00029999,2]
[424862288,1781212243000,-734.78931632,0.00029999,2]
[424862293,1781212243000,-734.78931632,0.00029999,2]
[424862240,1781212243000,-701.39614308,0.00029999,2]
[424862267,1781212243000,-701.39614308,0.00029999,2]
[424862264,1781212243000,-701.39614308,0.00029999,2]
[424862294,1781212243000,-734.78931632,0.00029999,2]
[424862273,1781212243000,-701.39614308,0.00029999,2]
[424862265,1781212243000,-701.39614308,0.00029999,2]
[424862243,1781212243000,-701.39614308,0.00029999,2]
[424862245,1781212243000,-701.39614308,0.00029999,2]
[424862247,1781212243000,-701.39614308,0.00029999,2]
[424862246,1781212243000,-701.39614308,0.00029999,2]
[424862248,1781212243000,-701.39614308,0.00029999,2]
[424862244,1781212243000,-701.39614308,0.00029999,2]
[424862249,1781212243000,-701.39614308,0.00029999,2]
[424862250,1781212243000,-701.39614308,0.00029999,2]
[424862255,1781212243000,-701.39614308,0.00029999,2]
[424862256,1781212243000,-701.39614308,0.00029999,2]
[424862253,1781212243000,-701.39614308,0.00029999,2]
[424862242,1781212243000,-701.39614308,0.00029999,2]
[424862295,1781212243000,-734.78931632,0.00029999,2]
[424862258,1781212243000,-701.39614308,0.00029999,2]
[424862274,1781212243000,-701.39614308,0.00029999,2]
[424862262,1781212243000,-701.39614308,0.00029999,2]
[424862266,1781212243000,-701.39614308,0.00029999,2]
[424862251,1781212243000,-701.39614308,0.00029999,2]
[424862263,1781212243000,-701.39614308,0.00029999,2]
[424862259,1781212243000,-701.39614308,0.00029999,2]
[424862254,1781212243000,-701.39614308,0.00029999,2]
[424862257,1781212243000,-701.39614308,0.00029999,2]
[424862252,1781212243000,-701.39614308,0.00029999,2]
[424862261,1781212243000,-701.39614308,0.00029999,2]
[424862260,1781212243000,-701.39614308,0.00029999,2]
[424862331,1781212244000,-398.05419325,0.00030082,7]
[424862333,1781212244000,-221.93409433,0.00030082,7]
[424862330,1781212244000,-179.09813948,0.00030082,7]
[424862327,1781212244000,-417.50218907,0.00030082,7]
[424862332,1781212244000,-302.95418279,0.00030082,7]
[424862328,1781212244000,-425.24853701,0.00030082,7]
[424862326,1781212244000,-457.77692956,0.00030082,7]
[424862323,1781212244000,-160.0,0.0003,7]
[424862321,1781212244000,-26985.49117731,0.0003,5]
[424862329,1781212244000,-427.82696669,0.00030082,7]
[424862336,1781212244000,-651.58703379,0.00030082,7]
[424862334,1781212244000,-371.43930954,0.00030082,7]
[424862335,1781212244000,-754.80932193,0.00030082,7]
[424862338,1781212244000,-741.31217351,0.00030082,7]
[424862343,1781212244000,-344.97576152,0.00030099,7]
[424862340,1781212244000,-461.53249869,0.00030082,7]
[424862339,1781212244000,-363.32176798,0.00030082,7]
[424862342,1781212244000,-509.2050493,0.00030099,7]
[424862341,1781212244000,-528.36652535,0.00030099,7]
[424862345,1781212244000,-490.38601512,0.00030099,7]
[424862346,1781212244000,-604.88620433,0.00030099,7]
[424862344,1781212244000,-485.63641763,0.00030099,7]
[424862325,1781212244000,-194.26899729,0.00030082,7]
[424862349,1781212244000,-613.15076228,0.00030099,2]
[424862337,1781212244000,-727.43578472,0.00030082,7]
[424862324,1781212244000,-157.05731674,0.00030081,7]
[424862308,1781212244000,-734.78931632,0.00029999,2]
[424862320,1781212244000,-1000.0,0.0003,2]
[424862348,1781212244000,-414.35785599,0.00030099,5]
[424862297,1781212244000,-734.78931632,0.00029999,2]
[424862296,1781212244000,-734.78931632,0.00029999,2]
[424862298,1781212244000,-734.78931632,0.00029999,2]
[424862299,1781212244000,-734.78931632,0.00029999,2]
[424862301,1781212244000,-734.78931632,0.00029999,2]
[424862309,1781212244000,-734.78931632,0.00029999,2]
[424862306,1781212244000,-734.78931632,0.00029999,2]
[424862304,1781212244000,-734.78931632,0.00029999,2]
[424862300,1781212244000,-734.78931632,0.00029999,2]
[424862303,1781212244000,-734.78931632,0.00029999,2]
[424862322,1781212244000,-316.0841448,0.0003,120]
[424862310,1781212244000,-936.08563172,0.00029999,2]
[424862305,1781212244000,-734.78931632,0.00029999,2]
[424862307,1781212244000,-734.78931632,0.00029999,2]
[424862317,1781212244000,-936.08563172,0.00029999,2]
[424862311,1781212244000,-936.08563172,0.00029999,2]
[424862315,1781212244000,-936.08563172,0.00029999,2]
[424862316,1781212244000,-936.08563172,0.00029999,2]
[424862312,1781212244000,-936.08563172,0.00029999,2]
[424862313,1781212244000,-936.08563172,0.00029999,2]
[424862314,1781212244000,-936.08563172,0.00029999,2]
[424862318,1781212244000,-936.08563172,0.00029999,2]
[424862319,1781212244000,-37154.77266569,0.0003,7]
[424862302,1781212244000,-734.78931632,0.00029999,2]
[424862351,1781212244000,-569.77272854,0.00030099,7]
[424862350,1781212244000,-697.60188852,0.00030099,7]
[424862347,1781212244000,-714.37646845,0.00030099,7]
[424862387,1781212244000,-338.0,0.0003015,30]
[424862383,1781212244000,-152.3706,0.00030137,2]
[424862386,1781212244000,-248.0,0.0003015,30]
[424862385,1781212244000,-625.87,0.0003015,7]
[424862378,1781212244000,-12329.5723623,0.0003013,2]
[424862381,1781212244000,-266.09,0.00030137,5]
[424862382,1781212244000,-166.91607756,0.00030137,40]
[424862389,1781212244000,-267.0,0.0003015,30]
[424862388,1781212244000,-155.0,0.0003015,30]
[424862390,1781212244000,-337.0,0.0003015,30]
[424862391,1781212244000,-788.0,0.0003015,30]
[424862395,1781212244000,-448.0,0.0003015,30]
[424862397,1781212244000,-279.0,0.00030151,30]
[424862396,1781212244000,-260.0,0.00030151,30]
[424862393,1781212244000,-241.0,0.0003015,30]
[424862392,1781212244000,-1270.0,0.0003015,30]
[424862394,1781212244000,-199.0,0.0003015,30]
[424862399,1781212244000,-195.0,0.00030151,30]
[424862398,1781212244000,-865.0,0.00030151,30]
[424862400,1781212244000,-1000.0,0.00030159,30]
[424862404,1781212244000,-1000.0,0.00030159,30]
[424862402,1781212244000,-1000.0,0.00030159,30]
[424862403,1781212244000,-1000.0,0.00030159,30]
[424862354,1781212244000,-330.70243617,0.00030099,7]
[424862405,1781212244000,-894.0,0.00030159,30]
[424862380,1781212244000,-1920.06248016,0.0003013,2]
[424862384,1781212244000,-327.59,0.00030137,30]
[424862401,1781212244000,-1000.0,0.00030159,30]
[424862377,1781212244000,-16347.9288112,0.0003013,7]
[424862353,1781212244000,-292.74392776,0.00030099,7]
[424862352,1781212244000,-664.26506865,0.00030099,7]
[424862359,1781212244000,-201.15418835,0.00030099,7]
[424862357,1781212244000,-624.22125159,0.00030099,7]
[424862365,1781212244000,-427.33501934,0.00030099,7]
[424862361,1781212244000,-494.84858342,0.00030099,7]
[424862379,1781212244000,-30059.13045164,0.0003013,2]
[424862360,1781212244000,-321.27317265,0.00030099,7]
[424862363,1781212244000,-422.51963555,0.00030099,7]
[424862355,1781212244000,-600.299278,0.00030099,7]
[424862362,1781212244000,-417.94111231,0.00030099,7]
[424862358,1781212244000,-424.56355346,0.00030099,7]
[424862364,1781212244000,-354.98947477,0.00030099,7]
[424862367,1781212244000,-271.75815348,0.00030099,7]
[424862368,1781212244000,-410.81546729,0.00030099,7]
[424862366,1781212244000,-408.95943969,0.00030099,7]
[424862369,1781212244000,-665.75861471,0.00030099,7]
[424862371,1781212244000,-1095.38748374,0.0003013,2]
[424862372,1781212244000,-14137.02812904,0.0003013,2]
[424862376,1781212244000,-302.73585079,0.0003013,2]
[424862375,1781212244000,-480.62840678,0.0003013,2]
[424862374,1781212244000,-205.70713865,0.0003013,2]
[424862370,1781212244000,-396.72953284,0.00030099,7]
[424862373,1781212244000,-646.86723645,0.0003013,2]
[424862356,1781212244000,-253.32091426,0.00030099,7]
[424862443,1781212245000,-337.0,0.0003115,30]
[424862440,1781212245000,-338.0,0.0003115,30]
[424862439,1781212245000,-248.0,0.0003115,30]
[424862442,1781212245000,-267.0,0.0003115,30]
[424862435,1781212245000,-150.0,0.00030841,2]
[424862438,1781212245000,-268.01,0.00031096,5]
[424862436,1781212245000,-610.43406966,0.00030967,2]
[424862437,1781212245000,-279.0,0.00031024,2]
[424862432,1781212245000,-199.0,0.000307,7]
[424862441,1781212245000,-155.0,0.0003115,30]
[424862452,1781212245000,-195.0,0.00031151,30]
[424862460,1781212245000,-37154.77266569,0.00031477,7]
[424862454,1781212245000,-1000.0,0.000312,7]
[424862444,1781212245000,-788.0,0.0003115,30]
[424862448,1781212245000,-448.0,0.0003115,30]
[424862445,1781212245000,-1270.0,0.0003115,30]
[424862447,1781212245000,-199.0,0.0003115,30]
[424862450,1781212245000,-279.0,0.00031151,30]
[424862449,1781212245000,-260.0,0.00031151,30]
[424862451,1781212245000,-865.0,0.00031151,30]
[424862446,1781212245000,-241.0,0.0003115,30]
[424862455,1781212245000,-784.69229814,0.00031217,2]
[424862433,1781212245000,-167.46807175,0.00030709,2]
[424862453,1781212245000,-515.0,0.00031152,14]
[424862434,1781212245000,-500.0,0.00030741,21]
[424862418,1781212245000,-814.48379224,0.00030656,7]
[424862425,1781212245000,-830.33133581,0.00030673,7]
[424862408,1781212245000,-1209.0,0.0003037,120]
[424862462,1781212245000,-1132.21398289,0.00031518,7]
[424862407,1781212245000,-190.74,0.00030264,2]
[424862409,1781212245000,-850.0,0.0003037,120]
[424862410,1781212245000,-784.0,0.0003037,120]
[424862419,1781212245000,-909.2947309,0.00030656,7]
[424862412,1781212245000,-515.0,0.00030525,13]
[424862411,1781212245000,-537.6845,0.00030419,2]
[424862414,1781212245000,-250.0,0.00030641,7]
[424862413,1781212245000,-500.0,0.0003064,2]
[424862416,1781212245000,-150.0,0.00030641,2]
[424862417,1781212245000,-943.51165241,0.00030656,7]
[424862415,1781212245000,-6051.0,0.00030641,10]
[424862420,1781212245000,-926.64021689,0.00030656,7]
[424862429,1781212245000,-2000.0,0.00030673,7]
[424862430,1781212245000,-2000.0,0.00030673,7]
[424862421,1781212245000,-756.10775541,0.00030673,7]
[424862422,1781212245000,-892.97058556,0.00030673,7]
[424862424,1781212245000,-872.00236065,0.00030673,7]
[424862428,1781212245000,-832.19826839,0.00030673,7]
[424862426,1781212245000,-750.3740975,0.00030673,7]
[424862427,1781212245000,-780.27656449,0.00030673,7]
[424862423,1781212245000,-766.43845285,0.00030673,2]
[424862431,1781212245000,-2000.0,0.00030673,7]
[424862457,1781212245000,-200.88,0.0003132,2]
[424862406,1781212245000,-1150.5,0.00030239,2]
[424862463,1781212245000,-1091.15367708,0.00031518,7]
[424862487,1781212245000,-1000.0,0.00031937,2]
[424862485,1781212245000,-1000.0,0.00031937,2]
[424862484,1781212245000,-1000.0,0.00031937,2]
[424862491,1781212245000,-1000.0,0.00031937,2]
[424862486,1781212245000,-1000.0,0.00031937,2]
[424862492,1781212245000,-1000.0,0.00031937,2]
[424862495,1781212245000,-1000.0,0.00031937,2]
[424862497,1781212245000,-1000.0,0.00031937,2]
[424862500,1781212245000,-5800.0,0.00031941,2]
[424862498,1781212245000,-1000.0,0.00031937,2]
[424862499,1781212245000,-1291.29,0.00031937,2]
[424862504,1781212245000,-5800.0,0.00031966,2]
[424862505,1781212245000,-5800.0,0.00031975,2]
[424862502,1781212245000,-5800.0,0.00031958,2]
[424862496,1781212245000,-1000.0,0.00031937,2]
[424862503,1781212245000,-172.14,0.00031963,2]
[424862507,1781212245000,-5800.0,0.00031992,2]
[424862506,1781212245000,-5800.0,0.00031983,2]
[424862509,1781212245000,-657.31627002,0.00032,120]
[424862508,1781212245000,-187.69831663,0.00032,120]
[424862511,1781212245000,-160.76412736,0.00032,120]
[424862510,1781212245000,-794.63877252,0.00032,120]
[424862465,1781212245000,-907.32930649,0.00031536,7]
[424862489,1781212245000,-1860.86,0.00031937,2]
[424862488,1781212245000,-1000.0,0.00031937,2]
[424862501,1781212245000,-5800.0,0.00031949,2]
[424862490,1781212245000,-1000.0,0.00031937,2]
[424862459,1781212245000,-215.2,0.0003132,2]
[424862482,1781212245000,-5800.0,0.00031924,2]
[424862456,1781212245000,-158.55225596,0.00031249,2]
[424862464,1781212245000,-1111.96826026,0.00031518,7]
[424862458,1781212245000,-2602.15,0.0003132,2]
[424862461,1781212245000,-327.59,0.00031507,30]
[424862466,1781212245000,-1071.56470267,0.00031536,7]
[424862467,1781212245000,-1046.40283278,0.00031536,7]
[424862469,1781212245000,-900.44891701,0.00031536,7]
[424862468,1781212245000,-996.39760297,0.00031536,7]
[424862471,1781212245000,-1274.0,0.0003162,2]
[424862476,1781212245000,-3643.0,0.00031652,2]
[424862470,1781212245000,-199.0,0.000316,7]
[424862494,1781212245000,-1000.0,0.00031937,2]
[424862474,1781212245000,-150.316222,0.00031622,2]
[424862483,1781212245000,-5800.0,0.00031932,2]
[424862480,1781212245000,-9077.0,0.00031867,10]
[424862481,1781212245000,-161.0,0.00031867,3]
[424862478,1781212245000,-515.0,0.00031778,14]
[424862472,1781212245000,-382.0,0.0003162,2]
[424862475,1781212245000,-6076.0,0.00031652,2]
[424862479,1781212245000,-8680.2563,0.00031838,2]
[424862473,1781212245000,-1227.0,0.0003162,2]
[424862477,1781212245000,-500.0,0.00031664,22]
[424862493,1781212245000,-1000.0,0.00031937,2]
[424862583,1781212246000,-100000.0,0.00032232,90]
[424862565,1781212246000,-241.0,0.0003215,30]
[424862582,1781212246000,-100000.0,0.00032232,120]
[424862561,1781212246000,-788.0,0.0003215,30]
[424862580,1781212246000,-500.0,0.00032231,2]
[424862563,1781212246000,-1270.0,0.0003215,30]
[424862572,1781212246000,-260.0,0.00032151,30]
[424862577,1781212246000,-195.0,0.00032151,30]
[424862559,1781212246000,-337.0,0.0003215,30]
[424862584,1781212246000,-82810.49872525,0.00032232,30]
[424862568,1781212246000,-199.0,0.0003215,30]
[424862586,1781212246000,-500.0,0.00032343,2]
[424862592,1781212246000,-500.0,0.00032343,2]
[424862587,1781212246000,-500.0,0.00032343,2]
[424862585,1781212246000,-100000.0,0.00032232,60]
[424862588,1781212246000,-500.0,0.00032343,2]
[424862590,1781212246000,-500.0,0.00032343,2]
[424862591,1781212246000,-500.0,0.00032343,2]
[424862589,1781212246000,-500.0,0.00032343,2]
[424862596,1781212246000,-500.0,0.00032343,2]
[424862597,1781212246000,-500.0,0.00032343,2]
[424862599,1781212246000,-500.0,0.00032343,2]
[424862595,1781212246000,-500.0,0.00032343,2]
[424862576,1781212246000,-865.0,0.00032151,30]
[424862581,1781212246000,-500.0,0.00032231,2]
[424862579,1781212246000,-1150.5,0.0003221,5]
[424862515,1781212246000,-200.02195816,0.00032,120]
[424862574,1781212246000,-279.0,0.00032151,30]
[424862516,1781212246000,-743.49307148,0.00032,120]
[424862594,1781212246000,-500.0,0.00032343,2]
[424862514,1781212246000,-172.54293024,0.00032,120]
[424862513,1781212246000,-184.54162468,0.00032,120]
[424862512,1781212246000,-862.3682448,0.00032,120]
[424862520,1781212246000,-195.495558,0.00032,120]
[424862522,1781212246000,-212.97669287,0.00032,120]
[424862518,1781212246000,-178.25990567,0.00032,120]
[424862528,1781212246000,-174.25490651,0.00032,120]
[424862519,1781212246000,-205.39761631,0.00032,120]
[424862521,1781212246000,-168.3978096,0.00032,120]
[424862526,1781212246000,-188.4317516,0.00032,120]
[424862524,1781212246000,-1074.78927319,0.00032,120]
[424862531,1781212246000,-186.27637768,0.00032,120]
[424862546,1781212246000,-269.11,0.00032055,5]
[424862549,1781212246000,-1358.0,0.00032062,2]
[424862550,1781212246000,-248.0,0.0003215,30]
[424862552,1781212246000,-338.0,0.0003215,30]
[424862535,1781212246000,-190.70801845,0.00032,120]
[424862537,1781212246000,-185.87068678,0.00032,120]
[424862539,1781212246000,-5800.0,0.00032,2]
[424862533,1781212246000,-223.68790151,0.00032,120]
[424862543,1781212246000,-160.0,0.00032,120]
[424862554,1781212246000,-155.0,0.0003215,30]
[424862557,1781212246000,-267.0,0.0003215,30]
[424862570,1781212246000,-448.0,0.0003215,30]
[424862598,1781212246000,-500.0,0.00032343,2]
[424862517,1781212246000,-199.36769843,0.00032,120]
[424862601,1781212246000,-500.0,0.00032343,2]
[424862631,1781212246000,-151.0,0.00032344,30]
[424862633,1781212246000,-151.0,0.00032344,7]
[424862632,1781212246000,-151.0,0.00032344,30]
[424862634,1781212246000,-151.0,0.00032344,7]
[424862637,1781212246000,-154.024201,0.00032344,7]
[424862630,1781212246000,-151.0,0.00032344,30]
[424862635,1781212246000,-151.0,0.00032344,7]
[424862638,1781212246000,-155.303787,0.00032344,7]
[424862636,1781212246000,-151.0,0.00032344,7]
[424862639,1781212246000,-151.0,0.00032344,7]
[424862652,1781212246000,-470.22,0.000326,7]
[424862641,1781212246000,-151.0,0.00032344,7]
[424862645,1781212246000,-150.0,0.00032383,2]
[424862649,1781212246000,-167.46807175,0.00032448,2]
[424862646,1781212246000,-199.0,0.000324,7]
[424862651,1781212246000,-450.99,0.00032556,2]
[424862647,1781212246000,-470.22,0.000324,7]
[424862648,1781212246000,-515.0,0.00032404,15]
[424862650,1781212246000,-1000.0,0.000325,7]
[424862644,1781212246000,-232464.63897661,0.00032344,2]
[424862643,1781212246000,-2083.90332132,0.00032344,2]
[424862654,1781212246000,-500.0,0.00032685,2]
[424862656,1781212246000,-45507.6490584,0.00032757,2]
[424862657,1781212246000,-1196.8318305,0.00032757,2]
[424862655,1781212246000,-223.0,0.00032747,3]
[424862628,1781212246000,-151.0,0.00032344,30]
[424862629,1781212246000,-151.0,0.00032344,30]
[424862653,1781212246000,-500.0,0.00032614,24]
[424862623,1781212246000,-500.0,0.00032343,2]
[424862626,1781212246000,-151.0,0.00032344,30]
[424862593,1781212246000,-500.0,0.00032343,2]
[424862603,1781212246000,-500.0,0.00032343,2]
[424862602,1781212246000,-500.0,0.00032343,2]
[424862604,1781212246000,-500.0,0.00032343,2]
[424862605,1781212246000,-500.0,0.00032343,2]
[424862614,1781212246000,-500.0,0.00032343,2]
[424862606,1781212246000,-500.0,0.00032343,2]
[424862610,1781212246000,-500.0,0.00032343,2]
[424862611,1781212246000,-500.0,0.00032343,2]
[424862613,1781212246000,-500.0,0.00032343,2]
[424862609,1781212246000,-500.0,0.00032343,2]
[424862616,1781212246000,-500.0,0.00032343,2]
[424862600,1781212246000,-500.0,0.00032343,2]
[424862615,1781212246000,-500.0,0.00032343,2]
[424862612,1781212246000,-500.0,0.00032343,2]
[424862627,1781212246000,-151.0,0.00032344,30]
[424862622,1781212246000,-500.0,0.00032343,2]
[424862624,1781212246000,-517.00033299,0.00032343,2]
[424862618,1781212246000,-500.0,0.00032343,2]
[424862625,1781212246000,-3043.6236274,0.00032344,2]
[424862620,1781212246000,-500.0,0.00032343,2]
[424862617,1781212246000,-500.0,0.00032343,2]
[424862608,1781212246000,-500.0,0.00032343,2]
[424862607,1781212246000,-500.0,0.00032343,2]
[424862619,1781212246000,-500.0,0.00032343,2]
[424862621,1781212246000,-500.0,0.00032343,2]
[424862685,1781212247000,-598.37897935,0.00032877,2]
[424862695,1781212247000,-300.0,0.00032899,10]
[424862687,1781212247000,-151.0,0.00032877,7]
[424862697,1781212247000,-666.0,0.00032899,10]
[424862688,1781212247000,-151.0,0.00032877,7]
[424862693,1781212247000,-25000.0,0.00032877,10]
[424862690,1781212247000,-1570.0,0.00032877,30]
[424862686,1781212247000,-151.0,0.00032877,7]
[424862696,1781212247000,-300.0,0.00032899,10]
[424862699,1781212247000,-38389.824,0.000329,28]
[424862691,1781212247000,-316.131142,0.00032877,120]
[424862692,1781212247000,-327.59,0.00032877,30]
[424862694,1781212247000,-25000.0,0.00032877,10]
[424862707,1781212247000,-666.0,0.00032999,10]
[424862680,1781212247000,-151.0,0.00032877,7]
[424862702,1781212247000,-11087.14880846,0.000329,2]
[424862701,1781212247000,-662.0207218,0.000329,2]
[424862700,1781212247000,-161.70674204,0.000329,2]
[424862698,1781212247000,-28373.11414423,0.000329,28]
[424862705,1781212247000,-426.80374489,0.00032955,2]
[424862706,1781212247000,-300.0,0.00032999,10]
[424862689,1781212247000,-151.0,0.00032877,7]
[424862682,1781212247000,-157.611457,0.00032877,7]
[424862675,1781212247000,-157.635871,0.00032877,7]
[424862684,1781212247000,-157.611457,0.00032877,7]
[424862703,1781212247000,-407.0,0.00032955,2]
[424862660,1781212247000,-1320.91631337,0.00032811,7]
[424862658,1781212247000,-470.22,0.000328,7]
[424862663,1781212247000,-1250.15881979,0.00032829,7]
[424862659,1781212247000,-152.0,0.00032806,7]
[424862661,1781212247000,-1273.01262326,0.00032811,7]
[424862662,1781212247000,-1058.55085757,0.00032829,7]
[424862664,1781212247000,-1220.80330491,0.00032829,7]
[424862665,1781212247000,-1162.46387014,0.00032829,7]
[424862667,1781212247000,-25000.0,0.00032842,10]
[424862681,1781212247000,-157.611457,0.00032877,7]
[424862668,1781212247000,-25000.0,0.00032851,10]
[424862669,1781212247000,-25000.0,0.00032859,10]
[424862671,1781212247000,-25000.0,0.00032868,10]
[424862672,1781212247000,-300.0,0.00032876,10]
[424862673,1781212247000,-300.0,0.00032876,10]
[424862674,1781212247000,-666.0,0.00032876,10]
[424862676,1781212247000,-157.635871,0.00032877,7]
[424862677,1781212247000,-157.635871,0.00032877,7]
[424862679,1781212247000,-151.0,0.00032877,7]
[424862678,1781212247000,-157.635871,0.00032877,7]
[424862683,1781212247000,-157.611457,0.00032877,7]
[424862666,1781212247000,-1050.52373651,0.00032829,7]
[424862670,1781212247000,-625.87,0.00032867,30]
[424862704,1781212247000,-407.0,0.00032955,2]
[424862708,1781212247000,-187.69831663,0.00033,120]
[424862742,1781212247000,-155.0,0.0003315,30]
[424862735,1781212247000,-406.73,0.00033014,5]
[424862737,1781212247000,-156.69078567,0.00033123,120]
[424862740,1781212247000,-248.0,0.0003315,30]
[424862739,1781212247000,-300.0,0.0003315,10]
[424862736,1781212247000,-515.0,0.0003303,16]
[424862738,1781212247000,-300.0,0.00033149,10]
[424862743,1781212247000,-267.0,0.0003315,30]
[424862741,1781212247000,-338.0,0.0003315,30]
[424862746,1781212247000,-1270.0,0.0003315,30]
[424862745,1781212247000,-788.0,0.0003315,30]
[424862748,1781212247000,-199.0,0.0003315,30]
[424862747,1781212247000,-241.0,0.0003315,30]
[424862749,1781212247000,-448.0,0.0003315,30]
[424862754,1781212247000,-1570.0,0.00033151,30]
[424862753,1781212247000,-195.0,0.00033151,30]
[424862752,1781212247000,-865.0,0.00033151,30]